[Event "*** MasterClass Titled Tuesday Blitz"]
[Site "Chess.com"]
[Date "2017.12.05"]
[Round "1"]
[White "Oneofmyturns"]
[Black "Saitama_Hero"]
[Result "1-0"]
[WhiteElo "2532"]
[BlackElo "2087"]
[TimeControl "180+2"]
[EndTime "14:23:13 PST"]
[Termination "Oneofmyturns won by resignation"]

1. e4 {[%clk 0:02:58.5]} 1... d6 {[%clk 0:02:53.8]} 2. d4 {[%clk 0:02:59.2]}
2... Nf6 {[%clk 0:02:55.7]} 3. Nc3 {[%clk 0:03:00.2]} 3... c6 {[%clk 0:02:54.5]}
4. Bg5 {[%clk 0:02:57.2]} 4... Nbd7 {[%clk 0:02:52.8]} 5. Qd2 {[%clk 0:02:55.8]}
5... e5 {[%clk 0:02:49.2]} 6. Nf3 {[%clk 0:02:55.2]} 6... Be7 {[%clk 0:02:48.4]}
7. O-O-O {[%clk 0:02:39.5]} 7... Qc7 {[%clk 0:02:47.1]} 8. Kb1 {[%clk
0:02:32.7]} 8... Nf8 {[%clk 0:02:42.2]} 9. d5 {[%clk 0:02:30.4]} 9... Ng6 {[%clk
0:02:26.9]} 10. h3 {[%clk 0:02:25.1]} 10... O-O {[%clk 0:02:19.6]} 11. g4 {[%clk
0:02:23.2]} 11... cxd5 {[%clk 0:02:15.5]} 12. Bxf6 {[%clk 0:02:22.4]} 12... Bxf6
{[%clk 0:02:13.8]} 13. Nxd5 {[%clk 0:02:23.7]} 13... Qd8 {[%clk 0:02:15.4]} 14.
g5 {[%clk 0:02:15.1]} 14... Be7 {[%clk 0:02:05.3]} 15. Nxe7+ {[%clk 0:02:03.4]}
15... Qxe7 {[%clk 0:02:07.2]} 16. Qxd6 {[%clk 0:02:04.8]} 16... Qxd6 {[%clk
0:02:01.6]} 17. Rxd6 {[%clk 0:02:06.7]} 17... Be6 {[%clk 0:02:02.7]} 18. h4
{[%clk 0:01:48.1]} 18... Rfd8 {[%clk 0:01:59.8]} 19. Rxd8+ {[%clk 0:01:49.5]}
19... Rxd8 {[%clk 0:02:01.3]} 20. Kc1 {[%clk 0:01:51.1]} 20... Bg4 {[%clk
0:01:52.1]} 21. Nd2 {[%clk 0:01:47]} 21... Nf4 {[%clk 0:01:51.8]} 22. f3 {[%clk
0:01:14.5]} 22... Be6 {[%clk 0:01:52.7]} 23. b3 {[%clk 0:01:03.9]} 23... Kf8
{[%clk 0:01:21]} 24. a4 {[%clk 0:01:04.9]} 24... Ke7 {[%clk 0:01:21.2]} 25. Bc4
{[%clk 0:00:44.2]} 25... Bxc4 {[%clk 0:01:12.4]} 26. Nxc4 {[%clk 0:00:46.1]}
26... Ne2+ {[%clk 0:01:10.6]} 27. Kb2 {[%clk 0:00:47]} 27... Ke6 {[%clk
0:01:12.5]} 28. Rh2 {[%clk 0:00:27.1]} 28... Nd4 {[%clk 0:00:54.4]} 29. Rd2
{[%clk 0:00:25.8]} 29... Rc8 {[%clk 0:00:55.6]} 30. Rd3 {[%clk 0:00:26.7]} 30...
a6 {[%clk 0:00:53.7]} 31. c3 {[%clk 0:00:25]} 31... Ne2 {[%clk 0:00:53.1]} 32.
Rd6+ {[%clk 0:00:25.9]} 32... Ke7 {[%clk 0:00:53.4]} 33. Rb6 {[%clk 0:00:27.3]}
33... Rc7 {[%clk 0:00:52.5]} 34. a5 {[%clk 0:00:24.8]} 34... f6 {[%clk
0:00:52.3]} 35. gxf6+ {[%clk 0:00:26]} 35... gxf6 {[%clk 0:00:54.2]} 36. Kc2
{[%clk 0:00:27.6]} 36... Ng1 {[%clk 0:00:54.1]} 37. Ne3 {[%clk 0:00:24.4]} 37...
Kf7 {[%clk 0:00:37.2]} 38. Nd5 {[%clk 0:00:25.7]} 38... Rc6 {[%clk 0:00:35.9]}
39. Rxb7+ {[%clk 0:00:27]} 39... Kf8 {[%clk 0:00:33.5]} 40. Rb6 {[%clk
0:00:27.3]} 1-0

[Event "*** MasterClass Titled Tuesday Blitz"]
[Site "Chess.com"]
[Date "2017.12.05"]
[Round "1"]
[White "Bryakin_Mikhail"]
[Black "Swarajan"]
[Result "1-0"]
[WhiteElo "2573"]
[BlackElo "2143"]
[TimeControl "180+2"]
[EndTime "14:23:14 PST"]
[Termination "Bryakin_Mikhail won by checkmate"]

1. d4 {[%clk 0:02:59.8]} 1... c5 {[%clk 0:02:58.6]} 2. d5 {[%clk 0:02:58]} 2...
Nf6 {[%clk 0:02:59.7]} 3. c4 {[%clk 0:02:57.7]} 3... g6 {[%clk 0:02:58.1]} 4.
Nc3 {[%clk 0:02:56.9]} 4... Bg7 {[%clk 0:02:59]} 5. e4 {[%clk 0:02:58]} 5... O-O
{[%clk 0:03:00.1]} 6. g3 {[%clk 0:02:48.9]} 6... e6 {[%clk 0:02:59.9]} 7. Bg2
{[%clk 0:02:49.7]} 7... exd5 {[%clk 0:03:01.1]} 8. exd5 {[%clk 0:02:50.1]} 8...
d6 {[%clk 0:03:02.2]} 9. Nge2 {[%clk 0:02:51.3]} 9... Re8 {[%clk 0:03:03.2]} 10.
O-O {[%clk 0:02:52.4]} 10... Nbd7 {[%clk 0:02:58.9]} 11. b3 {[%clk 0:02:39.9]}
11... Rb8 {[%clk 0:02:56.2]} 12. Bb2 {[%clk 0:02:40.7]} 12... a6 {[%clk
0:02:56.1]} 13. a4 {[%clk 0:02:41.7]} 13... Ne5 {[%clk 0:02:47.1]} 14. a5 {[%clk
0:02:41.7]} 14... b6 {[%clk 0:02:44.7]} 15. Qd2 {[%clk 0:02:24.3]} 15... Bh3
{[%clk 0:02:36.6]} 16. Nf4 {[%clk 0:02:12.8]} 16... Bxg2 {[%clk 0:02:36.1]} 17.
Kxg2 {[%clk 0:02:14.7]} 17... b5 {[%clk 0:02:33.8]} 18. cxb5 {[%clk 0:02:11.4]}
18... axb5 {[%clk 0:02:34.7]} 19. Ra2 {[%clk 0:01:55.6]} 19... b4 {[%clk
0:02:34.9]} 20. Nce2 {[%clk 0:01:56.6]} 20... Ne4 {[%clk 0:02:23.6]} 21. Qc2
{[%clk 0:01:55.7]} 21... Ng4 {[%clk 0:01:49.3]} 22. Bxg7 {[%clk 0:01:49.5]}
22... Kxg7 {[%clk 0:01:49.3]} 23. h3 {[%clk 0:01:44.6]} 23... Ngxf2 {[%clk
0:01:32.3]} 24. Rxf2 {[%clk 0:01:40.4]} 24... Nxf2 {[%clk 0:01:32.2]} 25. Kxf2
{[%clk 0:01:42.3]} 25... Ra8 {[%clk 0:01:29.6]} 26. Qc1 {[%clk 0:01:36.9]} 26...
Kg8 {[%clk 0:01:26.1]} 27. Qa1 {[%clk 0:01:32.8]} 27... Ra6 {[%clk 0:01:20.6]}
28. h4 {[%clk 0:01:29]} 28... Qc7 {[%clk 0:01:19]} 29. h5 {[%clk 0:01:29.3]}
29... Rea8 {[%clk 0:01:16.7]} 30. h6 {[%clk 0:01:30.5]} 30... f5 {[%clk
0:01:13.4]} 31. Ne6 {[%clk 0:01:30.9]} 31... Qe7 {[%clk 0:01:12.9]} 32. N2f4
{[%clk 0:01:29.3]} 32... c4 {[%clk 0:00:55.5]} 33. bxc4 {[%clk 0:01:28.8]} 33...
b3 {[%clk 0:00:39.7]} 34. Ra3 {[%clk 0:01:28.9]} 34... Qb7 {[%clk 0:00:34.8]}
35. Qb2 {[%clk 0:01:28.8]} 35... Rxa5 {[%clk 0:00:32.1]} 36. Rxb3 {[%clk
0:01:25.9]} 36... Qa7+ {[%clk 0:00:31.5]} 37. Qd4 {[%clk 0:01:26.6]} 37... Ra2+
{[%clk 0:00:31.7]} 38. Kf3 {[%clk 0:01:27.6]} 38... Qe7 {[%clk 0:00:27.9]} 39.
Qg7+ {[%clk 0:01:26.1]} 39... Qxg7 {[%clk 0:00:28.1]} 40. hxg7 {[%clk 0:01:28]}
40... R2a3 {[%clk 0:00:28.6]} 41. Rxa3 {[%clk 0:01:26.5]} 41... Rxa3+ {[%clk
0:00:29.2]} 42. Kf2 {[%clk 0:01:28]} 42... Rc3 {[%clk 0:00:29.6]} 43. c5 {[%clk
0:01:29.2]} 43... Rxc5 {[%clk 0:00:31]} 44. Nxc5 {[%clk 0:01:30.2]} 44... dxc5
{[%clk 0:00:32.9]} 45. Ne6 {[%clk 0:01:31.3]} 45... Kf7 {[%clk 0:00:33.6]} 46.
d6 {[%clk 0:01:32]} 46... c4 {[%clk 0:00:34.5]} 47. d7 {[%clk 0:01:32.8]} 47...
c3 {[%clk 0:00:35.8]} 48. d8=Q {[%clk 0:01:34.1]} 48... c2 {[%clk 0:00:37]} 49.
g8=Q# {[%clk 0:01:35.2]} 1-0

[Event "*** MasterClass Titled Tuesday Blitz"]
[Site "Chess.com"]
[Date "2017.12.05"]
[Round "1"]
[White "Diwi89"]
[Black "saraswathii"]
[Result "1/2-1/2"]
[WhiteElo "2730"]
[BlackElo "2302"]
[TimeControl "180+2"]
[EndTime "14:23:22 PST"]
[Termination "Game drawn - insufficient material"]

1. e4 {[%clk 0:03:01.9]} 1... c5 {[%clk 0:02:56.2]} 2. Nf3 {[%clk 0:03:01.1]}
2... e6 {[%clk 0:02:56.4]} 3. b3 {[%clk 0:03:00.8]} 3... Nc6 {[%clk 0:02:56.5]}
4. Bb2 {[%clk 0:03:01]} 4... d5 {[%clk 0:02:57.1]} 5. exd5 {[%clk 0:02:59]} 5...
exd5 {[%clk 0:02:57.8]} 6. Bb5 {[%clk 0:03:00.2]} 6... Qb6 {[%clk 0:02:54.1]} 7.
Nc3 {[%clk 0:02:54]} 7... Be6 {[%clk 0:02:54.1]} 8. O-O {[%clk 0:02:46.8]} 8...
d4 {[%clk 0:02:42.7]} 9. Bxc6+ {[%clk 0:02:47.8]} 9... Qxc6 {[%clk 0:02:44.6]}
10. Ne2 {[%clk 0:02:49.3]} 10... Bd6 {[%clk 0:02:42.9]} 11. c3 {[%clk
0:02:47.8]} 11... Bg4 {[%clk 0:02:24.9]} 12. Ng3 {[%clk 0:02:42.3]} 12... dxc3
{[%clk 0:02:10.9]} 13. Bxc3 {[%clk 0:02:42.8]} 13... f6 {[%clk 0:02:05.7]} 14.
Re1+ {[%clk 0:02:38.3]} 14... Ne7 {[%clk 0:02:05.9]} 15. Ne5 {[%clk 0:02:38.6]}
15... Bxd1 {[%clk 0:01:54.5]} 16. Nxc6 {[%clk 0:02:39.5]} 16... bxc6 {[%clk
0:01:55.5]} 17. Raxd1 {[%clk 0:02:39.8]} 17... Bxg3 {[%clk 0:01:50.8]} 18. hxg3
{[%clk 0:02:40.3]} 18... Kf7 {[%clk 0:01:51]} 19. Re4 {[%clk 0:02:39.2]} 19...
Rad8 {[%clk 0:01:48.5]} 20. Rc4 {[%clk 0:02:40.3]} 20... Rd5 {[%clk 0:01:48.5]}
21. Kf1 {[%clk 0:02:41.2]} 21... Nc8 {[%clk 0:01:48.7]} 22. d4 {[%clk
0:02:28.2]} 22... Rhd8 {[%clk 0:01:42.9]} 23. Rd2 {[%clk 0:02:23.2]} 23... Nd6
{[%clk 0:01:37.1]} 24. Rxc5 {[%clk 0:02:20.8]} 24... Ne4 {[%clk 0:01:36.8]} 25.
Rxd5 {[%clk 0:02:18.2]} 25... Nxd2+ {[%clk 0:01:37.4]} 26. Bxd2 {[%clk 0:02:19]}
26... Rxd5 {[%clk 0:01:37.9]} 27. Be3 {[%clk 0:02:16.7]} 27... Rb5 {[%clk
0:01:30.2]} 28. Ke2 {[%clk 0:02:15.6]} 28... a5 {[%clk 0:01:30.7]} 29. Bd2
{[%clk 0:02:11.4]} 29... Ke6 {[%clk 0:01:24.5]} 30. Kd3 {[%clk 0:02:07.4]} 30...
Kd5 {[%clk 0:01:25.3]} 31. Bc3 {[%clk 0:02:08.6]} 31... c5 {[%clk 0:01:19.2]}
32. dxc5 {[%clk 0:02:08.4]} 32... Rxc5 {[%clk 0:01:19.1]} 33. Bd2 {[%clk
0:02:08.9]} 33... Rb5 {[%clk 0:01:11.6]} 34. Bc3 {[%clk 0:02:09.7]} 34... g5
{[%clk 0:01:12.2]} 35. g4 {[%clk 0:02:08.5]} 35... Ke6 {[%clk 0:01:05.9]} 36. f3
{[%clk 0:02:05.3]} 36... Rd5+ {[%clk 0:01:04.8]} 37. Kc4 {[%clk 0:02:03]} 37...
f5 {[%clk 0:01:02.3]} 38. gxf5+ {[%clk 0:02:03.4]} 38... Rxf5 {[%clk 0:01:04.2]}
39. a4 {[%clk 0:02:03]} 39... h5 {[%clk 0:01:03.5]} 40. b4 {[%clk 0:02:01.6]}
40... axb4 {[%clk 0:01:03.8]} 41. Bxb4 {[%clk 0:02:03.5]} 41... g4 {[%clk
0:01:02.9]} 42. fxg4 {[%clk 0:01:59.3]} 42... hxg4 {[%clk 0:01:00.2]} 43. a5
{[%clk 0:01:59.1]} 43... Kd7 {[%clk 0:00:54.5]} 44. Be1 {[%clk 0:01:56.9]} 44...
Kc6 {[%clk 0:00:52.6]} 45. Kd3 {[%clk 0:01:56]} 45... Kb5 {[%clk 0:00:47.5]} 46.
Ke4 {[%clk 0:01:53.7]} 46... Rf1 {[%clk 0:00:47.3]} 47. Bc3 {[%clk 0:01:53.2]}
47... Rf2 {[%clk 0:00:45.9]} 48. g3 {[%clk 0:01:54.2]} 48... Rf3 {[%clk
0:00:46.6]} 49. Be5 {[%clk 0:01:55.7]} 49... Kxa5 {[%clk 0:00:43.8]} 50. Bf4
{[%clk 0:01:57.2]} 50... Kb5 {[%clk 0:00:39.1]} 51. Kf5 {[%clk 0:01:58.7]} 51...
Rd3 {[%clk 0:00:39.4]} 52. Kxg4 {[%clk 0:01:59.7]} 52... Rd5 {[%clk 0:00:39.6]}
53. Kf3 {[%clk 0:01:57.8]} 53... Kc6 {[%clk 0:00:39.3]} 54. Ke4 {[%clk
0:01:57.9]} 54... Rd1 {[%clk 0:00:36.9]} 55. Be5 {[%clk 0:01:58.7]} 55... Kd7
{[%clk 0:00:35.7]} 56. Kf5 {[%clk 0:01:59.7]} 56... Ke7 {[%clk 0:00:34.2]} 57.
g4 {[%clk 0:02:00.6]} 57... Rf1+ {[%clk 0:00:33.8]} 58. Bf4 {[%clk 0:02:01.2]}
58... Kf7 {[%clk 0:00:33.5]} 59. g5 {[%clk 0:02:02.6]} 59... Rg1 {[%clk
0:00:29.2]} 60. Be5 {[%clk 0:02:03]} 60... Rxg5+ {[%clk 0:00:28.2]} 61. Kxg5
{[%clk 0:02:04.9]} 1/2-1/2

[Event "*** MasterClass Titled Tuesday Blitz"]
[Site "Chess.com"]
[Date "2017.12.05"]
[Round "1"]
[White "Marcin"]
[Black "dusanacns"]
[Result "0-1"]
[WhiteElo "2208"]
[BlackElo "2614"]
[TimeControl "180+2"]
[EndTime "14:23:23 PST"]
[Termination "dusanacns won by resignation"]

1. d4 {[%clk 0:03:01.8]} 1... Nf6 {[%clk 0:02:59]} 2. c4 {[%clk 0:03:02]} 2...
g6 {[%clk 0:03:00.1]} 3. Nf3 {[%clk 0:03:01.4]} 3... Bg7 {[%clk 0:03:01.1]} 4.
g3 {[%clk 0:03:02.7]} 4... O-O {[%clk 0:03:02.2]} 5. Bg2 {[%clk 0:03:04.2]} 5...
d6 {[%clk 0:03:02.1]} 6. O-O {[%clk 0:03:05.8]} 6... Nc6 {[%clk 0:03:02.7]} 7.
Nc3 {[%clk 0:03:07.4]} 7... Bg4 {[%clk 0:03:03.5]} 8. Be3 {[%clk 0:03:05.8]}
8... Nd7 {[%clk 0:03:00.6]} 9. h3 {[%clk 0:03:06.3]} 9... Bxf3 {[%clk
0:03:01.3]} 10. exf3 {[%clk 0:03:07.3]} 10... Nb6 {[%clk 0:03:01.9]} 11. b3
{[%clk 0:02:55.5]} 11... d5 {[%clk 0:03:02.7]} 12. c5 {[%clk 0:02:56.4]} 12...
Nc8 {[%clk 0:03:02.4]} 13. f4 {[%clk 0:02:56.7]} 13... e6 {[%clk 0:03:03.5]} 14.
a3 {[%clk 0:02:46.4]} 14... a5 {[%clk 0:03:02.9]} 15. Rb1 {[%clk 0:02:46.8]}
15... N8e7 {[%clk 0:03:03.7]} 16. b4 {[%clk 0:02:47.4]} 16... axb4 {[%clk
0:03:04.7]} 17. axb4 {[%clk 0:02:49.3]} 17... Nf5 {[%clk 0:03:04.8]} 18. Ne2
{[%clk 0:02:50.6]} 18... Ra3 {[%clk 0:03:00.9]} 19. b5 {[%clk 0:02:50.8]} 19...
Na5 {[%clk 0:02:59]} 20. Qc1 {[%clk 0:02:37.7]} 20... Nc4 {[%clk 0:02:52.4]} 21.
Rb4 {[%clk 0:01:42.9]} 21... Nfxe3 {[%clk 0:02:44.8]} 22. fxe3 {[%clk
0:01:42.5]} 22... Rxe3 {[%clk 0:02:26.6]} 23. Rxc4 {[%clk 0:01:42.3]} 23... Rxe2
{[%clk 0:02:27.2]} 24. Ra4 {[%clk 0:01:43.8]} 24... Qd7 {[%clk 0:02:18.7]} 25.
Qb1 {[%clk 0:01:41.9]} 25... Rd2 {[%clk 0:02:18.1]} 26. Rd1 {[%clk 0:01:03.4]}
26... Rxd1+ {[%clk 0:02:16.5]} 27. Qxd1 {[%clk 0:01:05.3]} 27... Qxb5 {[%clk
0:02:17.7]} 28. Qc2 {[%clk 0:01:06.8]} 28... b6 {[%clk 0:02:11.2]} 29. c6 {[%clk
0:00:58.2]} 29... Bxd4+ {[%clk 0:01:47.2]} 30. Rxd4 {[%clk 0:00:58.6]} 30... Ra8
{[%clk 0:01:48.7]} 31. Rd1 {[%clk 0:00:54.8]} 31... Ra3 {[%clk 0:01:45.7]} 32.
Kh2 {[%clk 0:00:53.5]} 32... Qb4 {[%clk 0:01:41.1]} 33. Rb1 {[%clk 0:00:48.7]}
33... Rc3 {[%clk 0:01:33.5]} 34. Qa2 {[%clk 0:00:10.9]} 34... Qc5 {[%clk
0:01:32.8]} 35. Qa8+ {[%clk 0:00:11.7]} 35... Kg7 {[%clk 0:01:33.7]} 36. Qd8
{[%clk 0:00:10.8]} 36... Qxc6 {[%clk 0:01:34]} 37. h4 {[%clk 0:00:11.1]} 37...
h5 {[%clk 0:01:33.9]} 38. Kh3 {[%clk 0:00:11.8]} 38... Qc5 {[%clk 0:01:27.5]}
39. Rf1 {[%clk 0:00:12.4]} 39... b5 {[%clk 0:01:21.8]} 40. f5 {[%clk 0:00:13.7]}
40... Qd6 {[%clk 0:00:58.7]} 41. f6+ {[%clk 0:00:13.8]} 41... Kh7 {[%clk
0:00:59.8]} 42. Rf3 {[%clk 0:00:11.5]} 42... Qxd8 {[%clk 0:01:00]} 43. Rxc3
{[%clk 0:00:10.9]} 43... Qxf6 {[%clk 0:00:57.4]} 0-1

[Event "*** MasterClass Titled Tuesday Blitz"]
[Site "Chess.com"]
[Date "2017.12.05"]
[Round "1"]
[White "pKiLz5Rn9b"]
[Black "dawtonlms"]
[Result "1-0"]
[WhiteElo "2631"]
[BlackElo "2243"]
[TimeControl "180+2"]
[EndTime "14:23:26 PST"]
[Termination "pKiLz5Rn9b won by resignation"]

1. b3 {[%clk 0:03:01.9]} 1... Nf6 {[%clk 0:02:59]} 2. Bb2 {[%clk 0:03:02.8]}
2... g6 {[%clk 0:03:00.5]} 3. Nf3 {[%clk 0:03:03.9]} 3... Bg7 {[%clk 0:03:01.7]}
4. e3 {[%clk 0:03:05.4]} 4... O-O {[%clk 0:03:02.9]} 5. c4 {[%clk 0:03:06.9]}
5... c5 {[%clk 0:03:03.3]} 6. Nc3 {[%clk 0:03:07.7]} 6... b6 {[%clk 0:03:04.1]}
7. Be2 {[%clk 0:03:04.6]} 7... Bb7 {[%clk 0:03:05]} 8. O-O {[%clk 0:03:06.1]}
8... d5 {[%clk 0:03:05.5]} 9. Nxd5 {[%clk 0:03:06.6]} 9... Nxd5 {[%clk
0:03:05.3]} 10. Bxg7 {[%clk 0:03:07.9]} 10... Kxg7 {[%clk 0:03:07.2]} 11. cxd5
{[%clk 0:03:09.3]} 11... Bxd5 {[%clk 0:03:07.5]} 12. d4 {[%clk 0:03:10.3]} 12...
Nd7 {[%clk 0:03:07.6]} 13. dxc5 {[%clk 0:03:06.8]} 13... Nxc5 {[%clk 0:03:07.4]}
14. Qd4+ {[%clk 0:03:07.9]} 14... Kg8 {[%clk 0:03:07.9]} 15. Rfd1 {[%clk
0:03:03.8]} 15... Bb7 {[%clk 0:03:05.2]} 16. Qh4 {[%clk 0:03:02.9]} 16... Qc8
{[%clk 0:02:34.5]} 17. Ng5 {[%clk 0:02:59.5]} 17... h5 {[%clk 0:02:35.1]} 18. b4
{[%clk 0:02:45.2]} 18... Na4 {[%clk 0:02:19.7]} 19. Rac1 {[%clk 0:02:34]} 19...
Qb8 {[%clk 0:01:12.3]} 20. Bxh5 {[%clk 0:02:24.6]} 20... Kg7 {[%clk 0:01:09.4]}
21. Bf3 {[%clk 0:01:51.3]} 21... Rh8 {[%clk 0:01:09.3]} 22. Qg3 {[%clk
0:01:49.5]} 22... Bxf3 {[%clk 0:01:05.4]} 23. Nxf3 {[%clk 0:01:45]} 23... Qxg3
{[%clk 0:01:04.1]} 24. hxg3 {[%clk 0:01:46.9]} 24... Rhc8 {[%clk 0:01:02.6]} 25.
Nd4 {[%clk 0:01:46.8]} 25... Nc3 {[%clk 0:01:01.6]} 26. Rd3 {[%clk 0:01:44.1]}
26... Nxa2 {[%clk 0:01:01.2]} 27. Rxc8 {[%clk 0:01:45.5]} 27... Rxc8 {[%clk
0:01:02.2]} 28. b5 {[%clk 0:01:47.1]} 28... Nc3 {[%clk 0:01:02.3]} 29. f4 {[%clk
0:01:40.1]} 29... Rc5 {[%clk 0:01:00]} 30. Nc6 {[%clk 0:01:30.6]} 30... Nxb5
{[%clk 0:00:59.3]} 31. Nxe7 {[%clk 0:01:31.9]} 31... a5 {[%clk 0:00:59.1]} 32.
g4 {[%clk 0:01:30.2]} 32... a4 {[%clk 0:00:59.1]} 33. Rd8 {[%clk 0:01:29.6]}
33... g5 {[%clk 0:00:54.3]} 34. Rb8 {[%clk 0:01:18]} 34... a3 {[%clk 0:00:53.5]}
35. Nf5+ {[%clk 0:01:17.5]} 35... Kh7 {[%clk 0:00:21.4]} 36. Ra8 {[%clk
0:01:17.6]} 36... Rc1+ {[%clk 0:00:21.7]} 37. Kh2 {[%clk 0:01:18.2]} 37... gxf4
{[%clk 0:00:22.9]} 38. exf4 {[%clk 0:01:19.7]} 38... Rc2 {[%clk 0:00:24.2]} 39.
Ne3 {[%clk 0:01:13.7]} 39... Re2 {[%clk 0:00:24.5]} 40. Nd5 {[%clk 0:01:13.3]}
40... a2 {[%clk 0:00:24.1]} 41. f5 {[%clk 0:01:13.2]} 41... Kg7 {[%clk
0:00:24.3]} 42. g5 {[%clk 0:01:12.8]} 42... Nd4 {[%clk 0:00:19.1]} 43. f6+
{[%clk 0:00:59.1]} 43... Kg6 {[%clk 0:00:18.8]} 44. Nf4+ {[%clk 0:00:59.2]}
44... Kxg5 {[%clk 0:00:17.1]} 45. Nxe2 {[%clk 0:01:00.5]} 45... Nxe2 {[%clk
0:00:16.1]} 46. Rxa2 {[%clk 0:01:02]} 46... Nc3 {[%clk 0:00:14.3]} 47. Rb2
{[%clk 0:01:01.8]} 47... Nd5 {[%clk 0:00:15.3]} 48. Rb5 {[%clk 0:01:01.7]} 1-0

[Event "*** MasterClass Titled Tuesday Blitz"]
[Site "Chess.com"]
[Date "2017.12.05"]
[Round "1"]
[White "Gattass"]
[Black "Zkid"]
[Result "0-1"]
[WhiteElo "2102"]
[BlackElo "2547"]
[TimeControl "180+2"]
[EndTime "14:23:26 PST"]
[Termination "Zkid won by resignation"]

1. e4 {[%clk 0:03:01.7]} 1... c5 {[%clk 0:02:58.8]} 2. Nf3 {[%clk 0:03:02.3]}
2... d6 {[%clk 0:03:00]} 3. d4 {[%clk 0:03:03.7]} 3... cxd4 {[%clk 0:03:01.7]}
4. Qxd4 {[%clk 0:03:04.3]} 4... Nc6 {[%clk 0:03:02]} 5. Bb5 {[%clk 0:03:04.9]}
5... Bd7 {[%clk 0:03:03.3]} 6. Bxc6 {[%clk 0:03:05.6]} 6... Bxc6 {[%clk
0:03:04.4]} 7. c4 {[%clk 0:03:06.5]} 7... Nf6 {[%clk 0:03:01.7]} 8. Nc3 {[%clk
0:03:07.5]} 8... e5 {[%clk 0:02:55.6]} 9. Qd3 {[%clk 0:03:06.7]} 9... Be7 {[%clk
0:02:55.9]} 10. O-O {[%clk 0:03:05.9]} 10... O-O {[%clk 0:02:56.5]} 11. b3
{[%clk 0:03:05.8]} 11... a6 {[%clk 0:02:55.6]} 12. Rd1 {[%clk 0:03:03.8]} 12...
b5 {[%clk 0:02:53.2]} 13. Nd5 {[%clk 0:02:57.6]} 13... bxc4 {[%clk 0:02:48.7]}
14. Nxf6+ {[%clk 0:02:55.2]} 14... Bxf6 {[%clk 0:02:48.4]} 15. Qxc4 {[%clk
0:02:55.9]} 15... Rc8 {[%clk 0:02:39.8]} 16. Ba3 {[%clk 0:02:48.4]} 16... Qa5
{[%clk 0:02:34.4]} 17. Bb4 {[%clk 0:02:42.4]} 17... Qb5 {[%clk 0:02:15.2]} 18.
Qxb5 {[%clk 0:02:42.8]} 18... axb5 {[%clk 0:02:17.1]} 19. Bxd6 {[%clk
0:02:43.5]} 19... Rfe8 {[%clk 0:02:18.4]} 20. Re1 {[%clk 0:02:36.6]} 20... Ra8
{[%clk 0:02:12.2]} 21. a3 {[%clk 0:02:20.7]} 21... Re6 {[%clk 0:02:10]} 22. Rad1
{[%clk 0:02:16.2]} 22... g5 {[%clk 0:02:04.3]} 23. g4 {[%clk 0:02:08.4]} 23...
h5 {[%clk 0:02:00.8]} 24. h3 {[%clk 0:02:05.1]} 24... Rd8 {[%clk 0:01:54.7]} 25.
Bc5 {[%clk 0:01:51.3]} 25... Rxd1 {[%clk 0:01:55.1]} 26. Rxd1 {[%clk 0:01:52.3]}
26... Bxe4 {[%clk 0:01:55]} 27. Nd2 {[%clk 0:01:48.5]} 27... Bd3 {[%clk
0:01:53.7]} 28. gxh5 {[%clk 0:01:16.1]} 28... Kg7 {[%clk 0:01:40.7]} 29. Re1
{[%clk 0:01:16]} 29... e4 {[%clk 0:01:34.5]} 30. Nf1 {[%clk 0:01:15.9]} 30...
Bc3 {[%clk 0:01:29.2]} 31. Rd1 {[%clk 0:01:14.6]} 31... Kh6 {[%clk 0:01:23.6]}
32. Ng3 {[%clk 0:01:14.3]} 32... Be5 {[%clk 0:01:22.4]} 33. a4 {[%clk
0:01:12.5]} 33... bxa4 {[%clk 0:01:20.2]} 34. bxa4 {[%clk 0:01:14.4]} 34... Ra6
{[%clk 0:01:21.4]} 35. Re1 {[%clk 0:01:00.5]} 35... Rxa4 {[%clk 0:01:20]} 36.
Be3 {[%clk 0:00:58.2]} 36... Bf4 {[%clk 0:01:14.5]} 37. Kg2 {[%clk 0:00:47.4]}
37... f6 {[%clk 0:01:08.9]} 38. Kg1 {[%clk 0:00:28.4]} 38... Bxg3 {[%clk
0:01:07.7]} 39. fxg3 {[%clk 0:00:29.2]} 39... Kxh5 {[%clk 0:01:09.1]} 40. Rc1
{[%clk 0:00:22.8]} 40... Ra6 {[%clk 0:01:02.8]} 41. Rc5 {[%clk 0:00:19.1]} 41...
Ra1+ {[%clk 0:00:51.8]} 42. Rc1 {[%clk 0:00:19.3]} 42... Ra6 {[%clk 0:00:46.7]}
43. Rc5 {[%clk 0:00:20.1]} 43... Kg6 {[%clk 0:00:47.8]} 44. h4 {[%clk
0:00:20.7]} 44... gxh4 {[%clk 0:00:48.5]} 45. gxh4 {[%clk 0:00:21.8]} 45... Ra1+
{[%clk 0:00:49.6]} 46. Kf2 {[%clk 0:00:23]} 46... Rf1+ {[%clk 0:00:49.1]} 47.
Kg3 {[%clk 0:00:24.1]} 47... Rf3+ {[%clk 0:00:50.3]} 48. Kg4 {[%clk 0:00:24.8]}
48... f5+ {[%clk 0:00:49.3]} 0-1